Cogmind - Beta 16.1 @@@ ROGUE MODE // 2026.03.05 @ 14:30:30 Player: EX-OCT Result: Core destroyed Performance ------------- Evolutions (1) 500 Regions Visited (3) 600 Robots Destroyed (30) 150 Value Destroyed (653) 653 Prototype IDs (3) 60 Alien Tech Used (0) 0 Bonus (139) 139 TOTAL SCORE: 2102 Bonus ------- High Alert Combat Kills 19 Follower Combat Kills 120 Cogmind --------- Core Integrity 0/400 Matter 210/300 Energy 100/100 System Corruption 0% Temperature Cool (0) Movement Core (50) Location -9/Materials Parts ------- > --- POWER (1) -------- (None) > --- PROPULSION (4) --- (None) > --- UTILITY (2) ------ (None) > --- WEAPON (2) ------- (None) > --- INVENTORY (5) ---- Light Nuclear Core Hacking Suite Plasma Cutter Peak State ------------ > --- POWER ------------ Light Ion Engine > --- PROPULSION ------- Flight Unit Flight Unit Flight Unit > --- UTILITY ---------- Seismic Detector Light Armor Plating > --- WEAPON ----------- Advanced Beam Cannon Heavy Assault Rifle > --- INVENTORY -------- Light Nuclear Core Hacking Suite Grenade Launcher Plasma Cutter Hammer [Rating: 12] Favorites ----------- Power Light Ion Engine Engine Light Ion Engine Propulsion Flight Unit Treads Light Treads Flight Unit Flight Unit Utility Seismic Detector Device Seismic Detector Protection Light Armor Plating Weapon Small Laser Energy Gun Small Laser Energy Cannon Advanced Beam Cannon Ballistic Gun Heavy Assault Rifle Launcher Grenade Launcher Impact Weapon Hammer Slashing Weapon Mining Claw Build | -11 -10 -10 -9 ------- Run | Yrd Mat Min Mat Slots Evolved 2 | . . . 2 Power . | . . . . Propulsion 2 | . . . 2 Utility . | . . . . Weapon . | . . . . Parts Attached 18 | 5 7 1 5 Power 1 | . 1 . . Engine 1 | . 1 . . Core . | . . . . Reactor . | . . . . Propulsion 6 | 2 2 . 2 Treads 2 | 2 . . . Leg . | . . . . Wheel . | . . . . Hover . | . . . . Flight 4 | . 2 . 2 Utility 3 | 1 2 . . Device 2 | 1 1 . . Storage . | . . . . Processor . | . . . . Hackware . | . . . . Protection 1 | . 1 . . Artifact . | . . . . Weapon 8 | 2 2 1 3 Energy Gun 2 | 2 . . . Energy Cannon 1 | . . . 1 Ballistic Gun 2 | . . . 2 Ballistic Cannon . | . . . . Launcher 1 | . . 1 . Special Weapon . | . . . . Impact Weapon 1 | . 1 . . Slashing Weapon 1 | . 1 . . Piercing Weapon . | . . . . Special Melee Weapon . | . . . . Unidentified Prototypes 1 | . . . 1 Parts Lost 10 | . . . 10 Power . | . . . . Propulsion 4 | . . . 4 Utility 2 | . . . 2 Weapon 4 | . . . 4 Highest Loss Streak 4 | . . . 4 To Critical Strikes . | . . . . Average Backups 4 | . 3 5 4 Power 1 | . . 1 1 Propulsion 1 | . 1 1 . Utility . | . . 1 1 Weapon . | . . 1 . Tool/Special . | . . . . Unused Backups 4 | . . 1 3 Power 1 | . . . 1 Propulsion 1 | . . 1 . Utility 1 | . . . 1 Weapon . | . . . . Tool/Special 1 | . . . 1 Average Slot Usage (%) 72 | . 81 85 48 Engine 1 | . . . 3 Treads 3 | . 6 . . Flight 21 | . 21 28 17 Device 12 | . 14 14 7 Protection 9 | . 10 14 5 Energy Gun 12 | . 17 14 1 Ballistic Gun 1 | . . . 4 Impact Weapon 8 | . 7 13 7 Slashing Weapon 1 | . 2 . . Peak Build Rating 12 | 5 6 6 12 Average Rating 5 | 3 5 6 4 On Entrance 4 | . 5 6 6 Avg Prop Armor Cover (%) 28 | 30 28 . . Naked Turns 60 | . . . 60 Heaviest Build 12 | 3 7 7 12 Greatest Support 12 | 3 8 8 12 Greatest Overweight (x) 1 | . . . 1 Average Overweight (x) . | . . . . Largest Inventory Capacity 5 | 5 5 5 5 Average Capacity 5 | 5 5 5 5 Most Carried 5 | 1 5 5 5 Average Carried 4 | . 4 5 3 Final Capacity 5 | 5 5 5 5 Final Carried 5 | 1 5 5 3 Class Distribution -------------------- 86% | Mutant 13% | Scavenger-Mutant Dominant Class ---------------- Mutant | -10/Materials Mutant | -10/Mines Mutant | -9/Materials Resources | -11 -10 -10 -9 ----------- Run | Yrd Mat Min Mat Matter Collected 470 | 250 70 50 100 Remotely . | . . . . Salvage Created 762 | 80 242 137 303 Parts 53 | 7 15 10 21 Haulers Intercepted 2 | . 2 . . Recyclers Shooed 2 | . 2 . . Parts Field Recycled . | . . . . Retrieved Matter . | . . . . Parts Self-Destructed . | . . . . Prevented . | . . . . Parts Restored . | . . . . Kills | -11 -10 -10 -9 ------- Run | Yrd Mat Min Mat Combat Hostiles Destroyed 20 | . 5 4 11 Melee 3 | . . 1 2 Guns 5 | . 5 . . AOE 11 | . . 3 8 Classes Destroyed 12 | 2 5 1 4 Worker 1 | . . . 1 Builder 1 | . . 1 . Tunneler 1 | 1 . . . Hauler 2 | . 2 . . Recycler 2 | 1 . 1 . Mechanic 1 | . . . 1 Operator 1 | . 1 . . Watcher 1 | . 1 . . Swarmer 9 | . 3 3 3 Grunt 7 | . 2 1 4 Duelist 1 | . . . 1 Sentry 3 | . . . 3 Best Kill Streak 6 | 2 4 5 6 Combat Bots Only 5 | . 3 3 5 Max Kills in Single Turn 3 | 1 1 3 3 Gunslinging . | . . . . Exploded 2 | . . 2 2 Melee 1 | . . 1 1 Uniques/NPCs Destroyed . | . . . . Combat | -11 -10 -10 -9 -------- Run | Yrd Mat Min Mat Hostile Shots Fired 161 | . 35 15 111 Missed 61 | . 8 11 42 Hits 100 | . 27 4 69 Melee 1 | . . . 1 Projectile 99 | . 27 4 68 Critical Strikes 2 | . . . 2 Damage Taken 1276 | . 285 35 956 Core 466 | . 54 . 412 Absorbed by Shields . | . . . . Regen/Repaired (Parts) 10 | . . . 10 Core Remaining (%) 89 | 100 . 78 . Volleys Fired 44 | 7 24 3 10 Largest 2 | 2 2 2 1 Hottest 80 | 80 80 70 30 Shots Fired 77 | 14 47 6 10 Gun 64 | 14 47 3 . Cannon . | . . . . Launcher 13 | . . 3 10 Special . | . . . . Kinetic . | . . . . Thermal 64 | 14 47 3 . Explosive 13 | . . 3 10 Electromagnetic . | . . . . Robot Hit Streak 10 | 3 10 3 7 Robot Miss Streak 2 | 2 2 1 . Penetration Max . | . . . . Secondary Targets 1 | . 1 . . Max Gunslinging Chain 1 | . 1 . . Shots Hit Robots 76 | 7 40 7 22 Core Hits 48 | 3 14 6 25 Critical Kills 3 | . . 1 2 Critical Parts Destroyed 2 | . . . 2 Critical Strikes 5 | . . 1 4 Smash 5 | . . 1 4 Melee Attacks 50 | . 17 6 27 Impact 45 | . 12 6 27 Slashing 5 | . 5 . . Piercing . | . . . . Sneak Attacks 2 | . 2 . . Combat Hostiles . | . . . . Follow-up Attacks . | . . . . Damage Inflicted 2275 | 76 580 490 1129 Guns 440 | 76 339 25 . Cannons . | . . . . Explosions 1156 | . . 405 751 Melee 661 | . 241 60 360 Ramming 18 | . . . 18 Kinetic . | . . . . Thermal 440 | 76 339 25 . Explosive 1156 | . . 405 751 Electromagnetic . | . . . . Impact 538 | . 118 60 360 Slashing 123 | . 123 . . Piercing . | . . . . Highest Corruption . | . . . . Average Corruption . | . . . . Corruption Purged . | . . . . Corruption Blocked . | . . . . Overload Shots . | . . . . Overflow Damage 107 | . 44 27 36 Projectiles . | . . . . Explosions 42 | . . 27 15 Melee 65 | . 44 . 21 Knockbacks . | . . . . Impact . | . . . . Kinetic . | . . . . Secondary . | . . . . Self-Inflicted Damage 18 | . . . 18 Shots . | . . . . Rammed . | . . . . Targets Rammed . | . . . . Kicked . | . . . . Crushed . | . . . . Highest Temperature 120 | 43 120 27 12 Average Temperature 39 | 27 45 14 11 Received Heat Transfer 474 | . 78 6 390 Siege Activations . | . . . . Martial Activations . | . . . . Shielding Activations . | . . . . Robots Disrupted . | . . . . Combat Hostiles . | . . . . Robots Corrupted 1 | . . . 1 Combat Hostiles 1 | . . . 1 Parts Fried 2 | . . . 2 Impact Corruptions 5 | . 2 . 3 Robots Melted . | . . . . Combat Hostiles . | . . . . Parts Melted 3 | . 3 . . Heat Transferred 1000 | 175 775 50 . Parts Sabotaged . | . . . . Parts Stolen . | . . . . Parts Stripped . | . . . . Power Chain Reactions . | . . . . Alert | -11 -10 -10 -9 ------- Run | Yrd Mat Min Mat Maximum Alert Level 2 | . . . 2 Low Security (%) 92 | 100 100 100 72 Level 1 2 | . . . 8 Level 2 5 | . . . 19 Level 3 . | . . . . Level 4 . | . . . . Level 5 . | . . . . High Security . | . . . . Max Security . | . . . . Peak Influence 472 | 10 126 188 472 Initial 54 | . . 7 54 Average 107 | 1 76 82 196 Influence Increases 1220 | 10 289 283 638 Destroy 0b10 Robot/C 480 | . 100 160 220 Destroy 0b10 Robot/NC 50 | 10 20 10 10 Destroy Leader 136 | . 26 40 70 Allied During Kill 16 | . . 16 . Successful Hack 19 | . 19 . . Select Force Hacks 120 | . 60 . 60 Disable Machine 45 | . . . 45 Destroy Structure 69 | . 4 27 38 Partial Spotted 15 | . . . 15 Lose Combat Pursuer 270 | . 60 30 180 Influence Decreases 788 | 10 270 162 346 Entered New Map 98 | . . 12 86 Time Decay 530 | 10 270 90 160 Lost Part 100 | . . . 100 Lost Ally 60 | . . 60 . Squads Dispatched 9 | . 4 . 5 Investigation 7 | . 3 . 4 Extermination . | . . . . Reinforcement 2 | . 1 . 1 Assault . | . . . . Garrison . | . . . . Intercept . | . . . . Searches Triggered . | . . . . Construction Impeded . | . . . . Haulers Reinforced . | . . . . Active Scanning Responses . | . . . . Cargo Convoy Interrupts . | . . . . Stealth | -11 -10 -10 -9 --------- Run | Yrd Mat Min Mat Distress Signals 2 | . 1 . 1 Communications Jammed . | . . . . Distress Signals . | . . . . Times Spotted 63 | . 16 11 36 Peak Tracking Total 15 | . 5 5 15 Tactical Retreats 7 | . 3 1 3 Traps | -11 -10 -10 -9 ------- Run | Yrd Mat Min Mat Traps Triggered 1 | . . . 1 Indirectly . | . . . . Trap Hack Attempts . | . . . . Triggered . | . . . . Disarmed . | . . . . Reprogrammed . | . . . . Reused . | . . . . Traps Extracted . | . . . . Installed . | . . . . Triggered . | . . . . Machines | -11 -10 -10 -9 ---------- Run | Yrd Mat Min Mat Machines Disabled 3 | . . . 3 Max in Single Turn 2 | . . . 2 Machines Repaired . | . . . . Machines Dismantled . | . . . . Machines Sabotaged . | . . . . Overloaded Fab Kills . | . . . . Hacking | -11 -10 -10 -9 --------- Run | Yrd Mat Min Mat Machines Accessed 15 | . 10 . 5 Terminals 9 | . 8 . 1 Fabricators . | . . . . Repair Stations 2 | . . . 2 Recycling Units 4 | . 2 . 2 Scanalyzers . | . . . . Garrison Access . | . . . . Total Hacks 46 | . 35 . 11 Successful 23 | . 18 . 5 Failed 22 | . 16 . 6 Catastrophic 5 | . 5 . . Database Lockouts 1 | . 1 . . Manual 39 | . 31 . 8 Terminals 37 | . 33 . 4 Fabricators . | . . . . Repair Stations 4 | . . . 4 Recycling Units 5 | . 2 . 3 Scanalyzers . | . . . . Garrison Access . | . . . . Terminal Hacks 6 | . 6 . . Robot Analysis 1 | . 1 . . Prototype ID Bank 1 | . 1 . . Terminal Index 1 | . 1 . . Repair Station Index 1 | . 1 . . Locate Traps 1 | . 1 . . Zone Layout 1 | . 1 . . Fabricator Hacks . | . . . . Repair Station Hacks . | . . . . Recycling Unit Hacks . | . . . . Scanalyzer . | . . . . Garrison Access Hacks . | . . . . Unauthorized Hacks 17 | . 12 . 5 Terminals 12 | . 10 . 2 Botnet 5 | . 4 . 1 Skim 7 | . 6 . 1 Fabricators . | . . . . Repair Stations 1 | . . . 1 Patch 1 | . . . 1 Recycling Units 4 | . 2 . 2 Tunnel 4 | . 2 . 2 Scanalyzers . | . . . . Garrison Access . | . . . . Data Cores Recovered . | . . . . Used . | . . . . Hacking Detections 9 | . 6 . 3 Full Trace Events 1 | . . . 1 Feedback Events . | . . . . Feedback Blocked . | . . . . Robot Schematics Acquired . | . . . . Robots Built . | . . . . Authchips . | . . . . Time . | . . . . Total Robot Build Rating . | . . . . Part Schematics Acquired . | . . . . Parts Built . | . . . . Authchips . | . . . . Time . | . . . . Total Part Build Rating . | . . . . Part Studies Acquired . | . . . . Parts Repaired . | . . . . Time . | . . . . Parts Recycled . | . . . . Recycled Matter . | . . . . Retrieved Matter . | . . . . Retrieved Components . | . . . . Parts Scanalyzed . | . . . . Part Schematics Acquired . | . . . . Parts Damaged . | . . . . Bothacking | -11 -10 -10 -9 ------------ Run | Yrd Mat Min Mat Used RIF Installer . | . . . . Robots Hacked . | . . . . Non-combat . | . . . . Combat . | . . . . Robot Hacks Applied . | . . . . Relay Couplers Released . | . . . . Fabnet Peak Effective % . | . . . . Robots Rewired . | . . . . Allies Hacked . | . . . . Hacks Repelled . | . . . . Allies | -11 -10 -10 -9 -------- Run | Yrd Mat Min Mat Total Allies 3 | . . 3 . Largest Group 3 | . . 3 . Highest-Rated Group 40 | . . 40 . Highest-Rated Ally 16 | . . 16 . Total Orders . | . . . . Ally Attacks 20 | . . 20 . Total Damage 212 | . . 212 . Kills 4 | . . 4 . Allies Corrupted . | . . . . Allies Melted . | . . . . Intel | -11 -10 -10 -9 ------- Run | Yrd Mat Min Mat Active Infowar (turns) 1067 | 6 584 252 225 Seismic 1067 | 6 584 252 225 Robot Analysis Total 1 | . 1 . . Derelict Logs Recovered . | . . . . Drone Launches . | . . . . Drone Recoveries . | . . . . Exploration | -11 -10 -10 -9 ------------- Run | Yrd Mat Min Mat Turns Passed 1212 | 46 584 252 330 Spaces Moved 1408 | 34 630 306 438 Core 244 | 34 110 . 100 Treads . | . . . . Legs . | . . . . Wheels . | . . . . Hover . | . . . . Flight 1164 | . 520 306 338 Fastest Speed 34 | 50 37 37 34 Average Speed 39 | 50 39 37 39 Slowest Speed 120 | 50 50 37 120 Overloaded Moves . | . . . . Propulsion Burnouts . | . . . . Robots Hopped 11 | . . . 11 Potential Cave-ins . | . . . . Cave-ins Triggered . | . . . . Exploration Rate (%) 48 | 3 95 52 45 Regions Visited 3 Branch Regions 1 Pre-discovered Areas 6 | . 4 . 2 Known Exits Taken 1 | . . 1 . Unknown Exits Taken 2 | 1 1 . . Scrap Searched 1 | . . 1 . Spaces Dug 12 | . 4 4 4 Terrain Destroyed 78 | . 4 31 43 Melee 12 | . 4 4 4 Projectile . | . . . . AOE 66 | . . 27 39 Terrain Rammed 1 | . . . 1 Walls Destroyed . | . . . . Machines Disabled . | . . . . Actions | -11 -10 -10 -9 --------- Run | Yrd Mat Min Mat Total 1887 | 46 888 428 525 Wait 354 | . 201 108 45 Move 1384 | 33 629 305 417 Hop 10 | . . . 10 Pick Up 9 | 1 5 2 1 Fast Attach 12 | 5 2 . 5 Attach 8 | . 3 . 5 Detach 3 | . 1 . 2 Swap 4 | . 2 2 . Drop 9 | . 4 2 3 Fire 44 | 7 24 3 10 Melee 50 | . 17 6 27 Ram . | . . . . Kick . | . . . . Crush . | . . . . Escape Stasis . | . . . . Rewire . | . . . . Trap . | . . . . Miscellaneous . | . . . . Route ------- -11/Scrapyard -10/Materials (discovered 4 exits: *Mat x3 / [*Min]) -10/Mines -9/Materials (discovered 1 exit: *Sto) History --------- Turn | Location | Event 9 | -11/Scrapyard | Discovered new exit (range 15) 47 | -11/Scrapyard | Entered Materials 72 | -10/Materials | Discovered new exit (range 16) 286 | -10/Materials | Discovered new exit (range 16) 348 | -10/Materials | Learned location of 1 exit from Recycling 357 | -10/Materials | Discovered new exit (range 15) 408 | -10/Materials | Identified exit to Materials 456 | -10/Materials | Learned location of Storage (-9) 457 | -10/Materials | Central database locked down 495 | -10/Materials | Learned 4 Recycling zone layouts 523 | -10/Materials | Build established: Mutant 547 | -10/Materials | Learned location of 1 exit from Storage 631 | -10/Materials | Entered Mines 765 | -10/Mines | Discovered exit to Materials (range 11) 777 | -10/Mines | Assisted by bots powering up and referring to "LRC-V3" 820 | -10/Mines | Assembled infested the area 883 | -10/Mines | Entered Materials 883 | -9/Materials | Evolved 2 slots: Propulsion x2 884 | -9/Materials | Identified exit to Storage 1085 | -9/Materials | Lost 4 parts (2n1u1w) 1147 | -9/Materials | Lost 4 parts (2n1u1w) 1151 | -9/Materials | Core integrity fell below 50% 1160 | -9/Materials | Core integrity fell below 20% 1213 | -9/Materials | Core destroyed Last Messages --------------- 01150_ Sensor Array tumbles out of TF Node. 01150_ Signal Interpreter tumbles out of TF Node. 01150_ M-13 Machinist destroyed. 01152_ G-34 Mercenary destroyed. 01153_ Grenade Launcher destroyed. 01154_ The unstable cave ceiling collapses. 01156_ Critical hit (Burn: +37). 01159_ The unstable cave ceiling collapses. 01159_ Aluminum Leg crushed. 01168_ Connecting with Repair Station... 01168_ ALERT: Suspicious activity at Repair Station M001. Dispatching Investigation squad. 01199_ U-05 Engineer lays Concrete. 01201_ The unstable cave ceiling collapses. 01201_ U-05 Engineer lays Concrete. 01202_ K-01 Serf collects debris. 01203_ U-05 Engineer builds a Wall. 01205_ K-01 Serf collects debris. 01213_ Slammed into Wall. Map ----- +----------------------------------------------------+ | ????????????????????? ???# #???? | | ?????????????????????# ???# !/ #???? | | ?????????????????????# ???# /% #???? | | ?????????????????????# ???# / #???? | | ?????????????????????# ???# #???? | | ?????????????????????# #??# ! = #???? | | ?????????????????????# #??# #???? | | ????????????????????## ##?# #???? | | ???????????#######+## #### ####### | | ??????????? *[ *% | | ?????????? T " [ | | ?????????????? " " | | ???????????????###### ### ## ######## | | ????????????????????### ##?### ????? | | ??????????????????????# #????# "?? | | ??????????????????????# #????# """"" T?? | | ??????????????????????# #????# """"" ""# | | ??????????????????????# #????# """"" # | | ??????????????????????# #????# # | | ??????????????????????# #????############ | | ?????????????????????## ######??????????? | | ?????????????????????# !!#??????????? | | ?????????????????????# !!#??????????? | | ?????????????????????# ==#??????????? | | ?????????????######### ==#??????????? | | ?????????????# @ ## ## ==#######????? | | ?????????????# ## ## ==# # #????? | | ?????????????# ## #?#### # ###### | | ?????????????#! ## #??# # | | ????????????#####+##### ##### % | | ????????????# *%=# | | ????????????# =%= | | ????????????# ##+#########+##!= # | | ????????????# # ???# = # | | ????????????# # ?#""" ## # | | ????????????#### """ ##""" ## | | ???????????????# """ ##""" ##^ ####"""## | | ???????????????# """ ##""" + #??#####? | | ???????????????# ##""" ##/########?? | | ???????????????######### # #?? | | ???????????????????????# # """ #?? | | ???????????????????????# ! # """ #?? | | ???????????????????????# # """ #?? | | ???????????????????????# # " " #?? | | ???????????????????????# ! # "R" #?? | | ???????????????????????####### """ #?? | | ?????????????????????????????# #?? | | ?????????????????????????????###########?? | | | | | +----------------------------------------------------+ Best States ------------- Heat Dissipation 28 Energy Generation 10 Energy Capacity 125 Matter Stores 300 Matter Capacity 300 Sight Range 16 Terrain Scan Density 10 Armor Coverage 150 Evasion (%) 63 Recoil Reduction 2 Item Schematics ----------------- None Robot Schematics ------------------ None Fabricated ------------ Nothing Repaired ---------- Nothing Studied --------- None Alien Tech Used ----------------- None Achievements -------------- None Challenges ------------ None Game ------ Seed MetaAutogunJoltstriker Manual? 0 Play Time 00:20:56 Cumulative 294.1 hours Start 2026.03.05 @ 14:15:04 End 2026.03.05 @ 14:30:30 Sessions 1 Manual Loads 0 Difficulty Rogue Special Mode None Game No. 146 Rogue 146 Adventurer 0 Explorer 0 Win Type - Total 19 Types 7/0/5/1/4/1/0/0/0/1 Lore% 86 Gallery% 70 Achievement% 87 Wizard Run 0 Options --------- Layout 1 ASCII 0 Keyboard 0 Movement Numpad Keybinds 0 Fullscreen 1 Font 24/Smallcaps Map View 50x35 Zoom Use 0% Tactical HUD 1 Map Filters NONE Filters NONE Steam 1 RUN: 664e1734-b7e2-43c2-baf3-2220b6683b2d